bitfinex/quotes_BTCUSD_20230114
["timestamp","ask_amount","ask_price","bid_price","bid_amount"]
[1673657109665,0.1753,21010.0,20985.0,0.06576]
[1673657109910,0.1748,21008.0,20985.0,0.06076]
[1673657110152,0.19072595,21007.0,20991.0,0.6]
[1673657110392,0.2,21020.0,20985.0,0.02711309]
[1673657110393,0.19072595,21006.0,20985.0,0.02711309]
[1673657110631,0.49072595,21005.0,20986.0,0.6]
[1673657110869,0.1754,21007.0,20985.0,0.06208]
[1673657110870,0.49072595,21004.0,20985.0,0.06208]
[1673657111123,0.1748,20990.0,20982.0,0.3357437]
[1673657111370,0.12703398,20989.0,20982.0,0.3357437]
[1673657111625,0.1754,20989.0,20982.0,0.42122017]
[1673657111882,0.27102535,21002.0,20982.0,0.42122017]
[1673657112126,0.06543,21004.0,20985.0,0.6]
[1673657112375,0.1748,21001.0,20986.0,0.3]
[1673657112631,0.1748,20993.0,20983.0,0.446565]
[1673657112879,0.3,21001.0,20988.0,0.476455]
[1673657113120,0.06646,21008.0,20989.0,0.476428]
[1673657113121,0.175,20993.0,20989.0,0.476428]
[1673657113364,0.21426926,21022.0,20989.0,0.476428]
[1673657113365,0.175,21009.0,20993.0,0.21234969]
[1673657113620,0.31899105,21039.0,21002.0,0.08547647]
[1673657113621,0.1752,21018.0,21002.0,0.08547647]
[1673657113887,0.1755,21028.0,21011.0,1.03733147]
[1673657114134,0.10426444,21037.0,21011.0,1.03733147]
[1673657114494,0.1748,21021.0,21012.0,0.3]
[1673657114731,0.23773609,21039.0,21011.0,1.03733147]
[1673657114732,0.1697,21026.0,21013.0,0.5]
[1673657114976,0.2,21038.0,21011.0,1.03733147]
[1673657114977,0.1754,21022.0,21011.0,0.56141147]
[1673657115771,0.1754,21022.0,21012.0,0.5]
[1673657116022,0.1754,21036.0,21012.0,0.495]
[1673657116274,0.49072595,21035.0,21023.0,0.29056222]
[1673657116515,0.1754,21034.0,21024.0,0.08547647]
[1673657116768,0.3,21037.0,21025.0,0.08547647]
[1673657117009,0.1748,21028.0,21026.0,0.08547647]
[1673657117249,0.19072595,21036.0,21023.0,0.29056222]
[1673657117250,0.175,21027.0,21023.0,0.28685074]
[1673657117496,0.1748,21034.0,21024.0,0.2]
[1673657117742,0.17322444,21041.0,21023.0,0.28685074]
[1673657117743,0.06896,21037.0,21023.0,0.28685074]
[1673657117985,0.06901,21038.0,21024.0,0.48913671]
[1673657118229,0.05228007,21048.0,21023.0,0.39764924]
[1673657118230,0.3,21039.0,21023.0,0.39764924]
[1673657118474,0.3,21041.0,21023.0,0.28685074]
[1673657118740,0.10196768,21040.0,21025.0,0.2]
[1673657118975,0.3,21041.0,21027.0,0.2]
[1673657119227,0.01752092,21046.0,21028.0,0.19072595]
[1673657119228,0.31752092,21046.0,21028.0,0.19072595]
[1673657119504,0.1754,21055.0,21028.0,0.19072595]
[1673657119505,0.1753,21050.0,21030.0,0.19072595]
[1673657119748,0.00205556,21054.0,21034.0,0.2]
[1673657119995,0.6,21076.0,21041.0,0.19072595]
[1673657119996,0.06864,21076.0,21041.0,0.19072595]
[1673657120243,0.1753,21074.0,21060.0,0.19072595]
[1673657120486,0.1755,21069.0,21066.0,0.19072595]
[1673657120749,0.1755,21069.0,21059.0,0.474854]
[1673657120750,0.1755,21069.0,21067.0,0.19072595]
[1673657121004,0.1755,21069.0,21068.0,0.14475688]
[1673657121254,0.06887,21075.0,21068.0,0.13975688]
[1673657121255,0.1755,21075.0,21068.0,0.13975688]
[1673657121511,0.2,21085.0,21069.0,0.13975688]
[1673657121827,0.1754,21093.0,21079.0,0.13799448]
[1673657122042,0.06893,21099.0,21082.0,0.13755017]
[1673657122291,0.2684007,21094.0,21074.0,0.06222]
[1673657122532,0.07453953,21081.0,21075.0,0.29703587]
[1673657122807,0.2,21093.0,21080.0,0.06222]
[1673657123052,0.44423,21096.0,21078.0,0.3]
[1673657123053,0.1753,21096.0,21078.0,0.3]
[1673657123300,0.2,21104.0,21079.0,0.6]
[1673657123553,0.49072595,21103.0,21087.0,0.23687]
[1673657123821,0.06966,21109.0,21084.0,0.06222]
[1673657123822,0.001,21109.0,21088.0,0.19939375]
[1673657124083,0.001,21109.0,21087.0,0.06222]
[1673657124084,0.00595897,21098.0,21087.0,0.06222]
[1673657124365,0.19172595,21109.0,21087.0,0.06222]
[1673657124366,0.18744415,21108.0,21094.0,0.23679]
[1673657124610,0.18744415,21107.0,21095.0,0.79028758]
[1673657124847,0.00598144,21106.0,21098.0,0.19072595]
[1673657125088,0.5,21133.0,21100.0,0.23673]
[1673657125089,0.3,21116.0,21100.0,0.23673]
[1673657125337,0.2,21133.0,21099.0,0.66206282]
[1673657125338,0.2,21133.0,21101.0,0.49072595]
[1673657125577,0.2,21133.0,21113.0,0.19072595]
[1673657125578,0.10426444,21133.0,21113.0,0.19072595]
[1673657125828,0.25178069,21132.0,21120.0,0.19072595]
[1673657126071,0.08374815,21132.0,21122.0,0.19072595]
[1673657126320,0.18009545,21132.0,21123.0,0.19072595]
[1673657126565,0.04,21134.0,21124.0,0.19072595]
[1673657126826,0.04,21134.0,21125.0,0.19072595]
[1673657127077,0.30412119,21134.0,21126.0,0.19072595]
[1673657127323,0.035,21134.0,21127.0,0.19072595]
[1673657127570,0.035,21134.0,21123.0,0.06222]
[1673657127571,0.035,21134.0,21128.0,0.69072595]
[1673657127815,0.6,21175.0,21174.0,0.07789233]
[1673657128059,0.0093469,21188.0,21143.0,0.105]
[1673657128060,0.26360212,21174.0,21143.0,0.105]
[1673657128300,0.05228007,21164.0,21144.0,0.43104467]
[1673657128556,0.19072595,21163.0,21145.0,0.1421]
[1673657128799,0.19072595,21162.0,21145.0,0.2]
[1673657129059,0.19072595,21161.0,21149.0,0.19937978]
[1673657129330,0.19072595,21160.0,21146.0,0.36741]
[1673657129576,0.19072595,21159.0,21147.0,0.2]
[1673657129820,0.19072595,21158.0,21152.0,0.18043499]
[1673657130067,0.40500286,21182.0,21149.0,0.18043499]
[1673657130068,0.30426444,21182.0,21149.0,0.18043499]
[1673657130401,0.48242064,21181.0,21150.0,0.3]
[1673657130639,0.41956501,21172.0,21151.0,0.2]
[1673657130864,0.41956501,21169.0,21152.0,0.3]
[1673657131117,0.22728007,21180.0,21143.0,0.06440211]
[1673657131118,0.49072595,21168.0,21144.0,0.3]
[1673657131366,0.175,21180.0,21143.0,0.06440211]
[1673657131367,0.19072595,21164.0,21146.0,0.18043499]
[1673657131617,0.2,21165.0,21147.0,0.3]
[1673657131618,0.19072595,21163.0,21147.0,0.3]
[1673657131855,0.2,21165.0,21144.0,0.36672586]
[1673657131856,0.19072595,21162.0,21144.0,0.36672586]
[1673657132115,0.19072595,21161.0,21145.0,0.3]
[1673657132376,0.18572595,21160.0,21145.0,0.27917677]
[1673657132629,0.18572595,21160.0,21146.0,0.3]
[1673657132630,0.49499039,21159.0,21146.0,0.3]
[1673657132884,0.49499039,21159.0,21139.0,0.07614945]
[1673657132885,0.29499039,21158.0,21122.0,0.06693]
[1673657133135,0.19072595,21145.0,21124.0,0.18043499]
[1673657133395,0.2,21159.0,21129.0,0.06709]
[1673657133396,0.19072595,21140.0,21129.0,0.06709]
[1673657133641,0.19072595,21139.0,21133.0,0.16378899]
[1673657133885,0.2,21156.0,21127.0,0.22233324]
[1673657133886,0.19072595,21138.0,21127.0,0.22233324]
[1673657134153,0.19072595,21137.0,21120.0,0.22263198]
[1673657134375,0.19072595,21135.0,21125.0,0.02928061]
[1673657134633,0.05228007,21147.0,21116.0,0.16378899]
[1673657134634,0.39072595,21134.0,21116.0,0.16378899]
[1673657134873,0.39072595,21134.0,21117.0,0.3]
[1673657134874,0.19072595,21130.0,21117.0,0.3]
[1673657135116,0.19072595,21129.0,21121.0,0.02823837]
[1673657135392,0.19072595,21128.0,21121.0,0.02823837]
[1673657135634,0.2,21134.0,21105.0,0.16294556]
[1673657135635,0.39072595,21127.0,21105.0,0.16205277]
[1673657135889,0.19072595,21118.0,21077.0,0.30395]
[1673657136152,0.19072595,21094.0,21089.0,0.00956791]
[1673657136422,0.3,21117.0,21076.0,0.06697]
[1673657136423,0.19072595,21090.0,21076.0,0.06697]
[1673657136682,0.2,21116.0,21096.0,0.07972251]
[1673657136959,0.2,21116.0,21097.0,0.3]
[1673657137222,0.2867086,21115.0,21095.0,0.0422789]
[1673657137474,0.30426444,21114.0,21093.0,0.3326332]
[1673657137718,0.43794723,21109.0,21090.0,0.26866883]
[1673657137988,0.19072595,21106.0,21090.0,0.26866883]
[1673657138229,0.2,21114.0,21091.0,0.19072595]
[1673657138456,0.17110534,21113.0,21093.0,0.19072595]
[1673657138688,0.06646,21117.0,21094.0,0.49072595]
[1673657138689,0.19629145,21116.0,21094.0,0.49072595]
[1673657138933,0.19629145,21116.0,21095.0,0.49072595]
[1673657139188,0.19129145,21116.0,21096.0,0.49072595]
[1673657139625,0.19129145,21116.0,21090.0,0.26866883]
[1673657139626,0.49072595,21115.0,21090.0,0.18744416]
[1673657139629,0.49072595,21115.0,21070.0,0.21773]
[1673657139630,0.43794723,21113.0,21092.0,0.3]
[1673657139816,0.0045,21105.0,21073.0,0.34801386]
[1673657140024,0.0045,21105.0,21074.0,0.16205277]
[1673657140276,0.19072595,21096.0,21074.0,0.46205277]
[1673657140498,0.19072595,21091.0,21076.0,0.06603]
[1673657140719,0.19072595,21091.0,21075.0,0.3]
[1673657140720,0.008,21113.0,21087.0,0.16205277]
[1673657140969,0.06585,21110.0,21092.0,0.19072595]
[1673657141174,0.82868351,21107.0,21093.0,0.19072595]
[1673657141392,0.2,21107.0,21094.0,0.12159595]
[1673657141625,0.2,21107.0,21095.0,0.12123595]
[1673657141626,0.16769445,21106.0,21095.0,0.12123595]
[1673657141855,0.07949873,21094.0,21075.0,0.16205277]
[1673657142110,0.07949873,21094.0,21085.0,0.16205277]
[1673657142310,0.07949873,21094.0,21091.0,0.16205277]
[1673657142738,0.07949873,21094.0,21093.0,0.16205277]
[1673657142945,0.07949873,21094.0,21084.0,0.00370855]
[1673657142946,0.07949873,21094.0,21090.0,0.16205277]
[1673657143178,0.07949873,21094.0,21093.0,0.16205277]
[1673657143179,0.06584886,21094.0,21093.0,0.16205277]
[1673657143389,0.06584886,21094.0,21088.0,0.03487224]
[1673657143597,0.06584886,21094.0,21084.0,0.16576132]
[1673657143598,0.19072595,21093.0,21084.0,0.16576132]
[1673657143816,0.19072595,21092.0,21084.0,0.16576132]
[1673657143989,0.06584886,21094.0,21084.0,0.16576132]
[1673657143990,0.19072595,21091.0,21084.0,0.16576132]
[1673657144207,0.19072595,21090.0,21084.0,0.16576132]
[1673657144447,0.19072595,21089.0,21084.0,0.00370855]
[1673657144709,0.38502595,21088.0,21077.0,0.16205277]
[1673657144873,0.49072595,21087.0,21074.0,0.138]
[1673657145264,0.49072595,21087.0,21053.0,0.06582]
[1673657145265,0.69072595,21086.0,21067.0,0.16205277]
[1673657145547,0.69072595,21086.0,21046.0,0.66523]
[1673657145548,0.17572595,21085.0,21071.0,0.18775277]
[1673657145765,0.2,21086.0,21084.0,0.2]
[1673657146003,0.42859,21085.0,21072.0,0.0257]
[1673657146239,0.2,21083.0,21067.0,0.3]
[1673657146458,0.3,21082.0,21060.0,0.16205277]
[1673657146711,0.3,21082.0,21058.0,0.16205277]
[1673657146935,0.19072595,21079.0,21058.0,0.16205277]
[1673657147153,0.19072595,21078.0,21056.0,0.09573556]
[1673657147405,0.18572595,21077.0,21067.0,0.16205277]
[1673657147620,0.2,21083.0,21053.0,0.03487224]
[1673657147621,0.19072595,21076.0,21068.0,0.0257]
[1673657147847,0.19072595,21076.0,21056.0,0.22625277]
[1673657147848,0.19072595,21075.0,21069.0,0.0257]
[1673657148075,0.39072595,21074.0,21051.0,0.00194907]
[1673657148301,0.19072595,21069.0,21051.0,0.00194907]
[1673657148527,0.18966595,21067.0,21051.0,0.00194907]
[1673657148783,0.19072595,21066.0,21052.0,0.03487224]
[1673657149008,0.18354201,21065.0,21053.0,0.19072595]
[1673657149281,0.18354201,21064.0,21056.0,0.045]
[1673657149507,0.18354201,21063.0,21057.0,0.19072595]
[1673657149951,0.03065787,21063.0,21052.0,0.3]
[1673657150188,0.013,21067.0,21057.0,0.03487224]
[1673657150407,0.013,21067.0,21066.0,0.0919736]
[1673657151129,0.06903,21067.0,21066.0,0.0919736]
[1673657151341,0.06903,21067.0,21052.0,0.15299838]
[1673657151566,0.03065787,21066.0,21053.0,0.19072595]
[1673657151791,0.03088232,21065.0,21054.0,0.19072595]
[1673657152022,0.013,21067.0,21065.0,0.0525771]
[1673657152268,0.06903,21067.0,21065.0,0.24330305]
[1673657152550,0.2,21066.0,21051.0,0.04694907]
[1673657152777,0.3,21065.0,21051.0,0.23767502]
[1673657153005,0.2,21066.0,21051.0,0.04694907]
[1673657153265,0.06656568,21064.0,21051.0,0.19072595]
[1673657153483,0.06656568,21063.0,21052.0,0.28991655]
[1673657153974,0.16574696,21062.0,21053.0,0.19072595]
[1673657154196,0.26656568,21061.0,21054.0,0.19072595]
[1673657154439,0.39072595,21060.0,21044.0,0.00408936]
[1673657154725,0.19072595,21057.0,21028.0,0.3]
[1673657154984,0.19072595,21057.0,21023.0,0.06162]
[1673657154985,0.2,21060.0,21029.0,0.99573556]
[1673657155173,0.2,21056.0,21037.0,0.69573556]
[1673657155423,0.19072595,21055.0,21040.0,0.69573556]
[1673657155662,0.013,21067.0,21053.0,0.6]
[1673657155887,0.42859,21085.0,21057.0,0.25411847]
[1673657155888,0.63249645,21076.0,21057.0,0.25411847]
[1673657156102,0.26126,21086.0,21059.0,0.6]
[1673657156354,0.26126,21086.0,21060.0,0.6]
[1673657156355,0.2,21086.0,21060.0,0.6]
[1673657156602,0.2,21084.0,21061.0,0.3]
[1673657156816,0.06657162,21083.0,21066.0,0.19072595]
[1673657157062,0.06657162,21083.0,21069.0,0.19072595]
[1673657157312,0.01851012,21092.0,21066.0,0.66153]
[1673657157313,0.01851012,21092.0,21070.0,0.39072595]
[1673657157558,0.01851012,21092.0,21074.0,0.19072595]
[1673657157775,0.01851012,21092.0,21075.0,0.45036657]
[1673657158022,0.00074761,21092.0,21076.0,0.19072595]
[1673657158251,0.05094699,21094.0,21077.0,0.38572595]
[1673657158487,0.05094699,21094.0,21078.0,0.75110337]
[1673657158733,0.01909598,21094.0,21080.0,0.2]
[1673657158942,0.3,21109.0,21081.0,0.45125079]
[1673657159177,0.5395429,21106.0,21092.0,0.19072595]
[1673657159399,0.06085,21109.0,21095.0,0.19072595]
[1673657159649,0.06085,21109.0,21087.0,0.62027076]
[1673657159650,0.06085,21137.0,21101.0,0.19072595]
[1673657159863,0.061,21120.0,21119.0,0.19072595]
[1673657160293,0.53602551,21121.0,21119.0,0.19072595]
[1673657160537,0.3,21132.0,21120.0,0.19072595]
[1673657160776,0.75,21153.0,21105.0,0.169999]
[1673657160777,0.29989497,21136.0,21122.0,0.19072595]
[1673657161034,0.05228007,21138.0,21123.0,0.19072595]
[1673657161281,0.09883287,21138.0,21124.0,0.39072595]
[1673657161529,0.09883287,21138.0,21118.0,0.06086]
[1673657161530,0.001,21133.0,21125.0,0.49072595]
[1673657161776,0.001,21133.0,21126.0,0.19072595]
[1673657162024,0.001,21133.0,21118.0,0.06086]
[1673657162025,0.001,21133.0,21128.0,0.2]
[1673657162265,0.09664013,21133.0,21128.0,0.39072595]
[1673657162517,0.28703127,21145.0,21128.0,0.39072595]
[1673657162518,0.28703127,21145.0,21130.0,0.2]
[1673657162767,0.09564013,21144.0,21131.0,0.19072595]
[1673657163018,0.09564013,21143.0,21132.0,0.19072595]
[1673657163259,0.2,21145.0,21117.0,0.2]
[1673657163260,0.09564013,21142.0,21134.0,0.19072595]
[1673657163508,0.54599209,21157.0,21135.0,0.19072595]
[1673657163750,0.54599209,21157.0,21136.0,0.3]
[1673657163751,0.05228007,21148.0,21136.0,0.3]
[1673657164009,0.54599209,21157.0,21136.0,0.3]
[1673657164249,0.54599209,21157.0,21137.0,0.5]
[1673657164503,0.05228007,21165.0,21137.0,0.5]
[1673657164504,0.06085,21160.0,21137.0,0.2]
[1673657164793,0.94650344,21159.0,21138.0,0.2946992]
[1673657165039,0.94650344,21159.0,21139.0,0.5]
[1673657165285,0.14650344,21159.0,21140.0,0.25779843]
[1673657165532,0.3,21158.0,21139.0,0.2]
[1673657165785,0.09564013,21157.0,21140.0,0.39321282]
[1673657166025,0.01,21142.0,21141.0,0.19072595]
[1673657166271,0.10564013,21142.0,21129.0,0.06177]
[1673657166522,0.20125884,21153.0,21132.0,0.06177]
[1673657166762,0.3,21157.0,21146.0,0.31692038]
[1673657167001,0.66170856,21163.0,21147.0,0.18502595]
[1673657167244,0.15101658,21163.0,21148.0,0.19072595]
[1673657167486,0.15101658,21163.0,21146.0,0.29755863]
[1673657167487,0.7759,21150.0,21149.0,0.49072595]
[1673657167748,0.7759,21150.0,21146.0,0.29755863]
[1673657168476,0.2,21149.0,21118.0,0.00370315]
[1673657168736,0.2,21149.0,21124.0,0.19072595]
[1673657168980,0.2,21149.0,21125.0,0.19072595]
[1673657168981,0.3,21148.0,21125.0,0.19072595]
[1673657169219,0.3,21148.0,21126.0,0.19072595]
[1673657169458,0.3,21148.0,21127.0,0.19072595]
[1673657169709,0.89226439,21148.0,21128.0,0.19072595]
[1673657169953,0.89226439,21148.0,21129.0,0.19072595]
[1673657169954,0.2,21146.0,21129.0,0.19072595]
[1673657170233,0.2,21144.0,21118.0,0.00370315]
[1673657170474,0.19072595,21139.0,21108.0,0.06159]
[1673657170728,0.19072595,21132.0,21109.0,0.39573556]
[1673657170993,0.22632676,21138.0,21137.0,0.17497636]
[1673657170994,0.06209,21138.0,21137.0,0.17497636]
[1673657171240,0.06209,21138.0,21137.0,0.29657231]
[1673657171491,0.06209,21138.0,21137.0,0.10584636]
[1673657171735,0.58511351,21147.0,21137.0,0.29657231]
[1673657171983,0.2,21146.0,21138.0,0.19072595]
[1673657172235,0.58511351,21147.0,21139.0,0.19072595]
[1673657172479,0.58511351,21147.0,21140.0,0.19072595]
[1673657172791,0.777401,21150.0,21141.0,0.18937925]
[1673657172792,0.839801,21150.0,21141.0,0.18937925]
[1673657172989,0.839801,21150.0,21137.0,0.10584636]
[1673657172990,0.839801,21150.0,21142.0,0.49072595]
[1673657173251,0.839801,21150.0,21143.0,0.19072595]
[1673657173495,0.68072294,21149.0,21137.0,0.10584636]
[1673657173752,0.68072294,21149.0,21138.0,0.1861034]
[1673657173753,0.19072595,21148.0,21138.0,0.1861034]
[1673657173989,0.82968107,21150.0,21139.0,0.1861034]
[1673657173990,0.19072595,21147.0,21139.0,0.1861034]
[1673657174241,0.777401,21150.0,21138.0,0.3]
[1673657174482,0.19072595,21149.0,21139.0,0.03665603]
[1673657174717,0.19072595,21149.0,21129.0,0.06224]
[1673657174959,0.2,21148.0,21129.0,0.03665603]
[1673657175213,0.2,21148.0,21118.0,0.06586701]
[1673657175214,0.19072595,21147.0,21118.0,0.06586701]
[1673657175457,0.00298413,21143.0,21121.0,0.18774182]
[1673657175703,0.2,21148.0,21118.0,0.21586701]
[1673657175704,0.19042829,21140.0,21122.0,0.18774182]
[1673657175950,0.19042829,21139.0,21123.0,0.18774182]
[1673657176194,0.19042829,21138.0,21124.0,0.18774182]
[1673657176435,0.19042829,21138.0,21120.0,0.0629]
[1673657176436,0.19042829,21137.0,21125.0,0.18774182]
[1673657176696,0.0629,21141.0,21139.0,0.57128486]
[1673657176943,0.0629,21155.0,21140.0,0.19072595]
[1673657177192,0.08226175,21156.0,21141.0,0.19072595]
[1673657177193,0.06263,21153.0,21141.0,0.19072595]
[1673657177429,0.06263,21153.0,21142.0,0.19072595]
[1673657177673,0.75835817,21150.0,21143.0,0.19072595]
[1673657177911,0.75835817,21150.0,21144.0,0.19072595]
[1673657178163,0.2,21149.0,21145.0,0.19072595]
[1673657178409,0.2,21149.0,21139.0,0.57128486]
[1673657178410,0.2,21149.0,21146.0,0.19064125]
[1673657178702,0.7490979,21150.0,21146.0,0.13520595]
[1673657178958,0.2,21149.0,21146.0,0.19072595]
[1673657179208,0.2,21149.0,21139.0,0.57128486]
[1673657179209,0.21375252,21149.0,21139.0,0.57128486]
[1673657179452,0.05875252,21148.0,21139.0,0.57128486]
[1673657179705,0.25875252,21147.0,21137.0,0.3036917]
[1673657179967,0.05875252,21146.0,21119.0,0.15882556]
[1673657180211,0.05875252,21138.0,21120.0,0.58646151]
[1673657180480,0.05875252,21135.0,21121.0,0.39573556]
[1673657180723,0.05875252,21135.0,21119.0,0.03215738]
[1673657180724,0.05875252,21135.0,21118.0,0.00362701]
[1673657180969,0.51813697,21134.0,21118.0,0.00362701]
[1673657181221,0.25875252,21134.0,21118.0,0.00362701]
[1673657181734,0.2,21132.0,21106.0,0.3]
[1673657181980,0.2,21132.0,21105.0,0.00956963]
[1673657182225,0.2,21132.0,21087.0,0.66333]
[1673657182463,0.05228007,21131.0,21101.0,0.00950997]
[1673657182712,0.05228007,21131.0,21099.0,0.3]
[1673657182954,0.3,21130.0,21092.0,0.06311]
[1673657183202,0.04908007,21131.0,21100.0,0.19072595]
[1673657183203,0.05875252,21120.0,21100.0,0.19072595]
[1673657183448,0.05875252,21116.0,21101.0,0.19072595]
[1673657183708,0.05875252,21115.0,21095.0,0.00939648]
[1673657183949,0.05512551,21111.0,21092.0,0.3]
[1673657184196,0.3,21110.0,21092.0,0.29077016]
[1673657184450,0.05512551,21111.0,21086.0,0.28935056]
[1673657184719,0.3,21110.0,21084.0,0.20521586]
[1673657184981,0.2,21109.0,21084.0,0.20521586]
[1673657185225,0.34519771,21108.0,21085.0,0.19072595]
[1673657185475,0.34522484,21107.0,21086.0,0.19072595]
[1673657185715,0.2,21105.0,21087.0,0.19072595]
[1673657185972,0.35479863,21104.0,21088.0,0.19072595]
[1673657186213,0.2,21105.0,21089.0,0.19072595]
[1673657186214,0.35482587,21103.0,21089.0,0.19072595]
[1673657186458,0.05512552,21102.0,21090.0,0.19072595]
[1673657186701,0.04372551,21101.0,21091.0,0.19072595]
[1673657186953,0.31691641,21104.0,21092.0,0.19072595]
[1673657186954,0.04372551,21100.0,21092.0,0.19072595]
[1673657187201,0.04372551,21099.0,21092.0,0.19072595]
[1673657187446,0.35389672,21102.0,21076.0,0.20811876]
[1673657187447,0.05372551,21098.0,21076.0,0.20811876]
[1673657187697,0.3,21101.0,21077.0,0.19072595]
[1673657187698,0.05372551,21093.0,21077.0,0.19072595]
[1673657187943,0.05372551,21093.0,21074.0,1.29783248]
[1673657187944,0.05372551,21092.0,21078.0,0.19072595]
[1673657188190,0.05372551,21092.0,21074.0,1.36063248]
[1673657188191,0.05372551,21091.0,21079.0,0.49072595]
[1673657188439,0.05372551,21090.0,21085.0,0.00363327]
[1673657188680,0.0628,21097.0,21080.0,0.19072595]
[1673657188681,0.04939225,21089.0,21080.0,0.18935922]
[1673657188922,0.2,21103.0,21090.0,0.22740263]
[1673657189171,0.6058938,21101.0,21091.0,0.18572595]
[1673657189419,0.2,21103.0,21092.0,0.19072595]
[1673657189420,0.26283,21103.0,21092.0,0.19072595]
[1673657189663,0.26283,21103.0,21093.0,0.19072595]
[1673657189905,0.36783001,21103.0,21094.0,0.09072595]
[1673657190152,0.10500001,21102.0,21095.0,0.19072595]
[1673657190466,0.10500001,21102.0,21096.0,0.19072595]
[1673657190705,0.2,21103.0,21097.0,0.19072595]
[1673657190952,0.2,21103.0,21098.0,0.19072595]
[1673657191197,0.2,21103.0,21099.0,0.19072595]
[1673657191438,0.1943,21109.0,21100.0,0.13262595]
[1673657191688,0.1943,21109.0,21101.0,0.1350701]
[1673657191933,0.2,21110.0,21102.0,0.1350701]
[1673657192173,0.19072595,21109.0,21103.0,0.1350701]
[1673657192422,0.06257,21113.0,21104.0,0.1350701]
[1673657192666,0.2,21111.0,21105.0,0.1350701]
[1673657192909,0.19072595,21110.0,21105.0,0.1350701]
[1673657193177,0.60363632,21115.0,21106.0,0.11196528]
[1673657193429,0.2,21118.0,21107.0,0.11196528]
[1673657193676,0.19072595,21117.0,21108.0,0.08586528]
[1673657193932,0.19072595,21117.0,21096.0,0.06243]
[1673657193933,0.19072595,21117.0,21109.0,0.08586528]
[1673657194178,0.26233,21123.0,21110.0,0.08586528]
[1673657194428,0.66753775,21120.0,21111.0,0.07586529]
[1673657194665,0.19072595,21122.0,21111.0,0.07586529]
[1673657194922,0.57857629,21124.0,21112.0,0.07586529]
[1673657195171,0.57857629,21124.0,21113.0,0.07586529]
[1673657195172,0.19072595,21124.0,21113.0,0.07586529]
[1673657195430,0.19072595,21123.0,21114.0,0.07586529]
[1673657195673,0.55751258,21116.0,21114.0,0.07586529]
[1673657195912,0.19072595,21116.0,21105.0,0.3]
[1673657196149,0.06223,21118.0,21105.0,0.3]
[1673657196150,0.19072595,21115.0,21105.0,0.07586529]
[1673657196409,0.19072595,21115.0,21100.0,0.3]
[1673657196410,0.19072595,21114.0,21089.0,0.09731516]
[1673657196663,0.2,21110.0,21095.0,0.07586529]
[1673657196931,0.49072595,21109.0,21095.0,0.07586529]
[1673657197193,0.11157888,21109.0,21096.0,0.19072595]
[1673657197438,0.11157888,21108.0,21097.0,0.19072595]
[1673657197691,0.11157888,21107.0,21098.0,0.19072595]
[1673657197952,0.10786281,21106.0,21099.0,0.19072595]
[1673657198204,0.75700236,21122.0,21099.0,0.19072595]
[1673657198205,0.10786281,21105.0,21099.0,0.19072595]
[1673657198690,0.10786281,21105.0,21096.0,0.06307]
[1673657198691,0.06307,21108.0,21105.0,0.21572562]
[1673657198935,0.06307,21114.0,21105.0,0.40645157]
[1673657199195,0.06307,21114.0,21106.0,0.19072595]
[1673657199196,0.57763,21114.0,21106.0,0.19072595]
[1673657199438,0.56016234,21111.0,21107.0,0.19072595]
[1673657199705,0.2,21113.0,21105.0,0.21572562]
[1673657199957,0.60561824,21115.0,21107.0,0.19072595]
[1673657200206,0.2,21122.0,21108.0,0.19072595]
[1673657200441,0.56038632,21120.0,21109.0,0.19072595]
[1673657200688,0.66883786,21121.0,21110.0,0.19072595]
[1673657200926,0.57116237,21120.0,21110.0,0.19072595]
[1673657201174,0.05228007,21129.0,21111.0,0.19072595]
[1673657201425,0.02,21137.0,21114.0,0.19072595]
[1673657201666,0.06326,21131.0,21118.0,0.19072595]
[1673657201905,0.02,21137.0,21119.0,0.49072595]
[1673657202148,0.66918568,21143.0,21123.0,0.17139371]
[1673657202403,0.66918568,21143.0,21120.0,0.36343]
[1673657202404,0.02022262,21148.0,21130.0,0.19072595]
[1673657202656,0.02022262,21148.0,21127.0,0.06343]
[1673657202657,0.63590167,21146.0,21134.0,0.19072595]
[1673657202900,0.63590167,21146.0,21124.0,0.26343]
[1673657202901,0.06343,21144.0,21135.0,0.19072595]
[1673657203143,0.27373329,21146.0,21136.0,0.19072595]
[1673657203388,0.27373329,21144.0,21137.0,0.19072595]
[1673657203631,0.07247111,21143.0,21118.0,0.15878556]
[1673657203885,0.07247111,21139.0,21123.0,0.19072595]
[1673657204184,0.36305,21142.0,21110.0,0.06305]
[1673657204185,0.07247111,21136.0,21110.0,0.06305]
[1673657204423,0.07247111,21136.0,21107.0,0.06305]
[1673657204424,0.07247111,21127.0,21112.0,0.11497306]
[1673657204673,0.49072595,21126.0,21112.0,0.12067305]
[1673657204917,0.19072595,21125.0,21113.0,0.12067305]
[1673657205161,0.19072595,21124.0,21113.0,0.12067305]
[1673657206179,0.19072595,21124.0,21113.0,0.11967305]
[1673657206432,0.61953713,21145.0,21114.0,0.11967305]
[1673657206433,0.19072595,21123.0,21114.0,0.11967305]
[1673657206703,0.19072595,21122.0,21114.0,0.63172931]
[1673657206921,0.06356,21130.0,21106.0,0.2]
[1673657206922,0.30426444,21133.0,21115.0,0.11967305]
[1673657207169,0.1315511,21132.0,21125.0,0.76285784]
[1673657207416,0.1315511,21132.0,21126.0,0.19072595]
[1673657207417,0.47896377,21127.0,21126.0,0.19072595]
[1673657207667,0.52068157,21134.0,21126.0,0.39072595]
[1673657207918,0.55363558,21133.0,21127.0,0.49072595]
[1673657208158,0.08331713,21145.0,21128.0,0.49072595]
[1673657208159,0.47547186,21135.0,21128.0,0.49072595]
[1673657208403,0.06367,21138.0,21129.0,0.19072595]
[1673657208640,0.50173934,21134.0,21130.0,0.39072595]
[1673657208892,0.1314411,21134.0,21128.0,0.3]
[1673657209156,0.72211973,21133.0,21128.0,0.83791292]
[1673657209401,0.06407,21136.0,21125.0,0.76285784]
[1673657209646,0.0627711,21135.0,21126.0,0.19072595]
[1673657209890,0.0627711,21134.0,21127.0,0.81079275]
[1673657210135,0.57382371,21133.0,21129.0,0.09710905]
[1673657210379,0.0627711,21132.0,21125.0,0.76285784]
[1673657210633,0.06407,21136.0,21125.0,1.32312365]
[1673657210634,0.0627711,21131.0,21125.0,1.32312365]
[1673657210877,0.0627711,21130.0,21125.0,0.95358379]